bitfinex/quotes_ETHUSD_20251122
["timestamp","ask_amount","ask_price","bid_price","bid_amount"]
[1763771485997,0.002,2768.1,2767.3,6.47]
[1763771485998,0.4727,2768.0,2767.9,0.90699264]
[1763771486520,0.4728,2768.0,2767.9,1.3780919]
[1763771486703,0.002,2768.1,2767.9,1.3780919]
[1763771486904,0.002,2768.1,2767.9,0.47109926]
[1763771487119,0.002,2768.1,2768.0,5.74848847]
[1763771487431,0.002,2768.1,2768.0,6.15399247]
[1763771487636,0.4748,2768.1,2768.0,1.96193181]
[1763771487793,0.4748,2768.1,2768.0,0.90699264]
[1763771487996,0.002,2768.1,2768.0,0.90699264]
[1763771488202,0.002,2768.1,2768.0,5.62818847]
[1763771488711,0.002,2768.1,2768.0,5.74848847]
[1763771488908,0.002,2768.1,2768.0,6.15399247]
[1763771489114,0.002,2768.1,2768.0,7.19690164]
[1763771489718,0.002,2768.1,2768.0,7.31720164]
[1763771490529,0.002,2768.7,2768.1,1.31249664]
[1763771490848,0.002,2768.7,2768.3,6.15399247]
[1763771491810,0.002,2768.7,2768.3,6.27429247]
[1763771492136,0.002,2768.7,2768.3,7.29415172]
[1763771492341,0.002,2768.7,2768.4,0.405504]
[1763771492506,0.002,2768.7,2768.6,1.43279664]
[1763771493751,0.002,2769.5,2768.7,0.405504]
[1763771493917,0.002,2769.5,2769.4,0.90699264]
[1763771494122,0.002,2769.5,2769.4,1.46981149]
[1763771495330,0.002,2769.5,2769.4,1.99561549]
[1763771495526,0.002,2769.5,2769.4,2.11591549]
[1763771495731,0.002,2769.5,2769.4,1.87531549]
[1763771496347,0.002,2769.5,2769.4,1.99561549]
[1763771497663,0.002,2769.5,2769.4,2.11591549]
[1763771497869,0.002,2770.0,2769.5,0.405504]
[1763771498179,0.002,2770.0,2769.8,6.15399247]
[1763771498387,0.002,2770.0,2769.8,6.27429247]
[1763771498665,0.002,2770.0,2769.8,6.15399247]
[1763771499166,0.002,2770.0,2769.8,6.27429247]
[1763771499570,0.002,2770.0,2769.8,6.15399247]
[1763771499773,0.002,2770.0,2769.8,6.80663591]
[1763771500065,0.002,2770.0,2769.8,6.92693591]
[1763771502739,0.002,2770.2,2769.9,1.55309664]
[1763771502950,0.002,2770.2,2770.1,5.74848847]
[1763771503644,0.002,2770.6,2770.2,1.43279664]
[1763771503854,0.002,2770.6,2770.5,6.03369247]
[1763771504766,0.465,2770.6,2770.5,6.03369247]
[1763771505284,0.002,2770.6,2770.5,6.03369247]
[1763771505592,0.002,2770.6,2770.5,6.15399247]
[1763771505741,0.002,2770.6,2770.5,6.76939172]
[1763771506868,0.1837,2771.3,2770.6,1.31249664]
[1763771507068,0.1837,2771.3,2771.1,1.31249664]
[1763771507272,0.1824,2771.5,2771.1,1.31249664]
[1763771507438,0.1824,2771.5,2771.0,4.72119583]
[1763771507439,0.1824,2771.5,2771.4,5.62818847]
[1763771507871,0.6454,2771.5,2771.4,5.62818847]
[1763771508168,1.101,2771.5,2771.4,5.62818847]
[1763771508734,0.6454,2771.5,2771.4,6.59651132]
[1763771508937,1.101,2771.5,2771.4,0.90699264]
[1763771509472,0.6454,2771.5,2771.4,1.31249664]
[1763771510774,0.4556,2771.7,2771.5,0.90699264]
[1763771511067,0.4556,2771.7,2771.6,5.62818847]
[1763771511273,0.9186,2771.7,2771.6,5.62818847]
[1763771511436,0.1824,2771.8,2771.6,5.62818847]
[1763771511437,0.1824,2771.8,2771.7,0.90699264]
[1763771511789,1.101,2771.8,2771.7,0.90699264]
[1763771511991,0.6454,2771.8,2771.7,0.90699264]
[1763771512142,0.463,2771.8,2771.7,0.90699264]
[1763771512343,0.463,2771.8,2771.7,1.31249664]
[1763771512586,0.463,2771.8,2771.7,1.91586589]
[1763771512791,0.4556,2772.3,2771.8,0.405504]
[1763771513094,0.1837,2772.4,2772.1,0.90699264]
[1763771513255,0.6393,2772.4,2772.1,0.90699264]
[1763771513570,0.463,2772.2,2772.1,0.90699264]
[1763771514089,0.463,2772.2,2772.1,1.46981149]
[1763771514286,0.9186,2772.2,2772.1,1.46981149]
[1763771514777,0.9186,2772.2,2772.1,0.90699264]
[1763771515079,0.9186,2772.2,2771.9,0.90699264]
[1763771515380,0.1837,2772.4,2771.1,0.27938675]
[1763771515381,0.1824,2771.9,2771.1,0.27938675]
[1763771515580,0.6454,2771.9,2771.8,5.62818847]
[1763771515872,1.101,2771.9,2771.8,5.62818847]
[1763771518745,1.101,2771.9,2770.8,4.72119583]
[1763771518947,0.2774,2771.4,2771.2,5.11203601]
[1763771519141,0.4612,2771.3,2771.2,5.11203601]
[1763771519564,0.9168,2771.3,2770.8,5.58415559]
[1763771519800,0.4616,2770.9,2770.8,5.58415559]
[1763771519966,0.4616,2770.9,2770.8,5.98965959]
[1763771520172,0.9172,2770.9,2770.8,5.58415559]
[1763771520399,0.9172,2770.9,2770.8,5.98965959]
[1763771520552,0.9172,2770.9,2770.8,5.51754001]
[1763771520753,0.4556,2771.5,2770.8,5.51754001]
[1763771521054,0.4556,2771.5,2770.9,0.90699264]
[1763771522189,0.463,2771.0,2770.4,5.11203601]
[1763771522360,0.463,2770.5,2770.4,5.11203601]
[1763771522565,0.1824,2770.9,2770.5,0.90699264]
[1763771522976,0.4556,2770.8,2770.5,0.90699264]
[1763771523510,0.463,2770.6,2770.5,0.90699264]
[1763771524252,0.1824,2770.9,2770.5,0.90799264]
[1763771524448,0.638,2770.9,2770.5,0.90799264]
[1763771525079,0.463,2770.6,2770.5,0.001]
[1763771525498,0.9162,2770.6,2770.5,0.001]
[1763771526954,2.65975109,2770.6,2770.3,0.001]
[1763771527191,0.2798,2770.4,2770.0,0.001]
[1763771527399,2.4627262,2770.5,2770.0,0.001]
[1763771527400,0.4612,2770.1,2770.0,0.001]
[1763771527573,0.9144,2770.1,2770.0,0.001]
[1763771527897,1.68894238,2770.1,2770.0,0.001]
[1763771528194,0.9144,2770.1,2770.0,0.001]
[1763771530002,0.4612,2770.1,2770.0,0.001]
[1763771530169,0.9144,2770.1,2770.0,0.001]
[1763771530976,0.4612,2770.1,2770.0,0.001]
[1763771531178,0.4532,2770.6,2770.0,1.41929624]
[1763771531376,0.4869,2770.1,2770.0,1.41929624]
[1763771532106,0.1824,2770.9,2770.0,1.92899732]
[1763771532107,0.4532,2770.7,2770.0,1.92899732]
[1763771532316,0.4869,2770.1,2770.0,0.5123036]
[1763771532619,0.9401,2770.1,2770.0,0.001]
[1763771532776,0.9401,2770.1,2770.0,3.805]
[1763771533510,0.9401,2770.1,2770.0,0.001]
[1763771537326,0.1824,2770.9,2770.0,0.001]
[1763771537634,0.4869,2770.1,2770.0,0.90799264]
[1763771538034,0.9401,2770.1,2770.0,0.90799264]
[1763771540307,0.4869,2770.1,2770.0,0.90799264]
[1763771541331,1.01974504,2770.4,2770.0,0.90799264]
[1763771541722,1.01974504,2770.4,2770.1,5.11203601]
[1763771541723,0.56654504,2770.4,2770.1,5.11203601]
[1763771542029,0.56654504,2770.4,2770.2,0.90699264]
[1763771542226,0.4532,2770.7,2770.3,0.61857287]
[1763771542435,0.4869,2770.4,2770.3,0.61857287]
[1763771543341,0.4532,2770.7,2770.3,0.61857287]
[1763771543543,0.4532,2770.7,2770.4,0.90699264]
[1763771543763,0.1824,2770.9,2770.6,0.90699264]
[1763771543960,0.6356,2770.9,2770.7,3.804]
[1763771544544,0.9401,2770.8,2770.7,3.804]
[1763771544870,0.4869,2770.8,2770.7,4.71099264]
[1763771545157,0.002,2771.0,2770.7,3.804]
[1763771545326,0.002,2771.0,2770.8,3.804]
[1763771545526,0.002,2771.0,2770.9,3.804]
[1763771546853,0.4889,2771.0,2770.8,0.90699264]
[1763771547027,0.002,2771.0,2770.8,0.90699264]
[1763771548358,0.002,2771.0,2770.8,4.71099264]
[1763771548533,0.002,2771.0,2770.9,7.95311026]
[1763771548859,0.002,2771.0,2770.9,7.38723265]
[1763771551445,0.002,2771.8,2771.0,1.31249664]
[1763771551643,0.002,2771.8,2771.7,1.38059264]
[1763771551847,0.002,2771.8,2771.7,1.86969264]
[1763771552152,0.002,2771.8,2771.7,1.38059264]
[1763771552353,0.002,2771.8,2771.7,2.0298555]
[1763771553450,0.9421,2771.8,2771.7,1.5562555]
[1763771553971,0.4889,2771.8,2771.7,1.5562555]
[1763771554968,0.002,2771.8,2771.7,2.9244595]
[1763771556447,0.002,2771.8,2771.7,2.96053844]
[1763771556649,0.002,2771.8,2771.7,2.9244595]
[1763771558407,0.002,2771.8,2771.7,6.7304595]
[1763771558559,0.002,2771.8,2771.7,2.96053844]
[1763771558762,0.002,2771.8,2771.7,2.9244595]
[1763771559005,0.002,2771.8,2771.7,2.96053844]
[1763771560128,0.002,2772.1,2771.8,0.405504]
[1763771560426,0.002,2772.4,2772.2,0.405504]
[1763771560600,0.002,2772.4,2772.3,0.405504]
[1763771560911,0.4625,2772.4,2772.1,0.90699264]
[1763771561156,0.4536,2772.4,2772.2,0.405504]
[1763771561328,0.4605,2772.2,2772.1,0.90699264]
[1763771561812,0.9121,2772.2,2772.0,5.11203601]
[1763771561983,0.4516,2772.2,2772.1,0.90699264]
[1763771562313,0.002,2772.4,2772.2,0.405504]
[1763771562613,0.002,2772.4,2772.3,1.316704]
[1763771563181,0.002,2772.4,2772.3,2.22369664]
[1763771563994,0.002,2772.4,2772.3,0.405504]
[1763771564164,0.002,2772.4,2772.3,6.42453265]
[1763771564362,0.002,2772.4,2772.3,6.47622865]
[1763771564562,0.002,2772.4,2772.3,7.33573265]
[1763771565967,0.002,2772.4,2772.3,11.14173265]
[1763771566202,0.6379,2773.5,2772.8,1.31249664]
[1763771566375,0.6379,2773.5,2773.1,0.405504]
[1763771566576,0.6379,2773.8,2773.3,0.862704]
[1763771566885,0.6379,2773.8,2773.3,0.405504]
[1763771567687,0.6379,2773.8,2773.3,0.862704]
[1763771569312,0.1863,2773.8,2773.3,0.862704]
[1763771570203,0.4625,2773.4,2773.3,0.405504]
[1763771570370,0.4625,2773.4,2773.3,0.59650106]
[1763771570715,0.9141,2773.4,2773.1,1.31249664]
[1763771570894,0.255,2773.2,2773.1,1.31249664]
[1763771571681,0.002,2773.4,2773.1,1.76969664]
[1763771571881,0.002,2773.4,2773.2,0.03605942]
[1763771573095,0.002,2773.4,2773.3,0.862704]
[1763771573300,0.002,2773.4,2773.3,1.08507366]
[1763771573891,0.002,2773.4,2773.3,0.62787366]
[1763771574111,0.002,2773.4,2773.3,1.08507366]
[1763771574433,0.002,2773.7,2773.3,1.53907366]
[1763771574635,0.002,2774.0,2773.7,0.405504]
[1763771574793,0.002,2774.0,2773.9,0.4572]
[1763771575187,0.002,2774.0,2773.9,0.9112]
[1763771577132,0.002,2774.0,2773.9,1.316704]
[1763771578638,0.002,2774.0,2773.9,0.862704]
[1763771578838,0.4625,2774.0,2773.9,4.6920349]
[1763771579042,0.9141,2774.0,2773.7,4.6920349]
[1763771579204,0.1863,2773.9,2773.7,4.6920349]
[1763771579404,0.6379,2773.9,2773.8,0.90699264]
[1763771579819,1.0984,2773.9,2773.8,0.90699264]
[1763771582645,0.002,2774.0,2773.8,1.36419264]
[1763771582946,0.002,2774.0,2773.9,1.316704]
[1763771583444,0.002,2774.3,2773.9,1.316704]
[1763771583630,0.002,2774.6,2774.3,1.31249664]
[1763771584015,0.002,2774.6,2774.5,5.59902754]
[1763771584411,0.002,2774.6,2774.5,7.06218469]
[1763771585115,0.002,2774.6,2774.5,6.60498469]
[1763771585809,0.91,2774.6,2774.5,0.90699264]
[1763771586015,0.002,2774.6,2774.5,6.00453154]
[1763771586747,0.002,2774.6,2774.5,6.45963154]
[1763771587946,0.4569,2775.6,2774.6,1.31249664]
[1763771588245,0.4569,2775.6,2775.4,4.6920349]
[1763771588446,0.6511,2774.7,2774.6,0.405504]
[1763771588617,0.6511,2774.7,2774.6,6.00453154]
[1763771588817,0.198,2774.9,2774.6,6.6823226]
[1763771589252,0.4549,2775.1,2774.6,6.6823226]
[1763771589432,0.002,2775.6,2775.1,0.90699264]
[1763771589433,0.4549,2775.5,2775.1,0.90699264]
[1763771589746,0.002,2775.6,2775.4,5.59902754]
[1763771589970,0.002,2775.6,2775.5,1.31249664]
[1763771590469,0.4551,2775.6,2775.5,1.31249664]
[1763771590618,0.91,2775.6,2775.5,0.90699264]
[1763771591285,0.4551,2775.6,2775.5,0.90699264]
[1763771591486,0.91,2775.6,2775.5,0.90699264]
[1763771593587,0.91,2775.6,2774.1,0.6457]
[1763771593780,0.7055,2775.5,2775.1,0.90699264]
[1763771594167,0.4511,2775.2,2775.1,0.90699264]
[1763771594595,0.906,2775.2,2775.1,0.90699264]
[1763771595673,0.906,2775.2,2774.8,0.90699264]
[1763771595890,0.4509,2775.1,2774.8,0.90699264]
[1763771596082,0.6511,2774.9,2774.8,0.90699264]
[1763771596600,1.106,2774.9,2774.8,0.90699264]
[1763771596987,0.6511,2774.9,2774.8,0.90699264]
[1763771597997,1.106,2774.9,2774.8,0.90699264]
[1763771600024,1.106,2774.9,2774.8,4.71099264]
[1763771600607,0.002,2775.6,2774.8,5.65129539]
[1763771600608,0.4549,2775.4,2774.8,5.65129539]
[1763771600809,0.4549,2775.4,2774.8,4.71099264]
[1763771600810,0.4531,2774.9,2774.8,4.71099264]
[1763771602006,0.4549,2775.2,2774.8,4.71099264]
[1763771602203,0.4549,2775.2,2775.0,4.6920349]
[1763771602584,0.4531,2775.1,2775.0,5.59902754]
[1763771603206,0.908,2775.1,2775.0,0.90699264]
[1763771604116,0.908,2775.1,2775.0,3.804]
[1763771608506,1.68451709,2775.1,2774.5,0.001]
[1763771608723,0.4486,2774.6,2774.5,0.001]
[1763771609238,0.9035,2774.6,2774.5,0.001]
[1763771612336,0.9035,2774.6,2774.2,0.001]
[1763771612623,0.4511,2774.3,2774.2,0.001]
[1763771613005,0.906,2774.3,2774.2,0.001]
[1763771613193,0.4511,2774.3,2774.2,0.001]
[1763771613394,0.906,2774.3,2774.2,0.001]
[1763771614200,1.47174792,2774.3,2774.2,0.001]
[1763771614710,0.198,2774.6,2774.2,5.1481349]
[1763771615028,0.198,2774.6,2774.3,1.43731613]
[1763771615338,0.4549,2774.8,2774.3,1.43731613]
[1763771616505,0.002,2775.1,2774.7,0.465]
[1763771616750,0.002,2775.1,2775.0,5.1570349]
[1763771617043,0.002,2775.1,2775.0,6.94173154]
[1763771617248,0.002,2775.4,2775.3,6.00453154]
[1763771617573,0.002,2775.6,2775.4,0.405504]
[1763771617703,0.002,2775.6,2775.3,5.59902754]
[1763771617902,0.002,2775.6,2775.5,0.465]
[1763771618538,0.002,2775.6,2775.5,0.9372]
[1763771618736,0.002,2775.6,2775.5,1.59082275]
[1763771620239,1.245737,2777.0,2775.7,0.405504]
[1763771620439,0.4706,2777.0,2776.3,4.6920349]
[1763771621421,0.4927,2776.4,2775.7,0.405504]
[1763771621622,0.2271,2776.2,2776.0,0.90699264]
[1763771622028,0.49,2776.1,2776.0,0.90699264]
[1763771622539,0.9606,2776.1,2776.0,0.90699264]
[1763771624010,0.4706,2776.4,2776.0,0.90699264]
[1763771624411,0.4927,2776.1,2776.0,0.90699264]
[1763771624824,0.9633,2776.1,2776.0,0.90699264]
[1763771625435,0.4927,2776.1,2776.0,0.90699264]
[1763771625826,0.4706,2776.4,2776.0,0.90699264]
[1763771626027,0.4706,2776.6,2776.0,0.90699264]
[1763771626228,0.4706,2777.1,2776.0,1.46689539]
[1763771626621,0.4706,2777.1,2776.1,0.1609]
[1763771627013,0.4706,2777.1,2776.0,1.46689539]
[1763771628119,0.1863,2777.2,2776.7,4.6920349]
[1763771628621,0.4706,2777.7,2777.1,0.465]
[1763771628815,0.1836,2778.0,2777.0,4.6920349]
[1763771628816,0.6542,2778.0,2777.0,4.6920349]
[1763771629028,0.4706,2777.9,2777.0,4.6920349]
[1763771629228,0.4706,2777.9,2777.3,4.6920349]
[1763771630447,0.4706,2777.9,2777.0,0.48529349]
[1763771630448,0.4927,2777.4,2777.0,5.17732839]
[1763771630669,0.4706,2777.7,2777.0,5.64952839]
[1763771632048,0.4706,2777.7,2777.0,5.17732839]
[1763771632212,0.4927,2777.1,2777.0,0.90699264]
[1763771632647,0.9633,2777.1,2777.0,0.90699264]
[1763771634043,0.9633,2777.1,2776.3,4.6920349]
[1763771634226,0.1856,2778.0,2776.3,4.6920349]
[1763771634227,0.1836,2776.4,2776.3,4.6920349]
[1763771634544,0.6763,2776.4,2775.9,4.6920349]
[1763771634746,0.6763,2776.4,2776.0,0.46920349]
[1763771634928,0.6763,2776.4,2776.0,1.37619613]
[1763771635129,0.1836,2776.6,2776.1,0.1609]
[1763771635441,1.21943311,2776.9,2776.4,0.90699264]
[1763771635946,0.4706,2776.8,2776.4,0.90699264]
[1763771636252,0.56523311,2776.9,2776.7,4.6920349]
[1763771636747,0.4927,2776.8,2776.4,0.90699264]
[1763771636947,0.2297,2776.5,2776.4,0.90699264]
[1763771637449,0.56523311,2776.9,2776.4,1.84021086]
[1763771637753,0.1836,2776.9,2776.4,1.84021086]
[1763771638449,0.4706,2777.2,2776.4,2.31241086]
[1763771638614,0.4706,2777.2,2776.6,4.6920349]
[1763771639236,0.4706,2777.2,2776.2,0.4722]
[1763771639237,0.6763,2776.7,2776.2,4.6920349]
[1763771639442,0.2297,2776.5,2776.3,0.90699264]
[1763771639950,0.9606,2776.4,2775.9,0.4706]
[1763771640157,0.1836,2776.7,2775.9,1.42325613]
[1763771640463,0.6542,2776.7,2775.9,1.42325613]
[1763771640824,0.4706,2776.6,2775.9,1.42325613]
[1763771641359,0.4706,2776.6,2776.0,3.804]
[1763771641555,0.4706,2776.6,2776.1,0.90699264]
[1763771641858,0.4706,2776.6,2775.7,3.804]
[1763771642061,0.4706,2776.6,2775.8,0.90699264]
[1763771642227,0.6763,2775.8,2775.5,3.804]
[1763771642428,0.6763,2775.8,2774.6,5.25425778]
[1763771642429,0.4927,2775.6,2774.6,5.25425778]
[1763771642652,0.2297,2775.4,2774.6,5.25425778]
[1763771642853,0.2297,2775.4,2774.7,0.90799264]
[1763771643055,0.7003,2775.4,2774.7,0.90799264]
[1763771643365,0.7003,2775.4,2774.7,0.001]
[1763771643536,1.26585062,2775.4,2774.7,0.001]
[1763771649356,10.43107562,2775.4,2774.7,0.001]
[1763771649559,8.80437018,2775.4,2774.7,0.001]
[1763771649756,9.20987418,2775.4,2774.7,0.001]
[1763771650056,0.4527,2775.1,2774.7,0.001]
[1763771650266,0.4527,2775.1,2774.8,3.804]
[1763771650473,0.56555062,2775.4,2774.8,3.804]
[1763771650669,0.4703,2775.6,2774.9,3.84003733]
[1763771650987,0.4703,2775.6,2775.1,0.38410373]
[1763771651781,0.4703,2775.6,2775.3,0.001]
[1763771652184,0.4527,2775.4,2775.3,0.001]
[1763771652570,0.002,2775.7,2775.3,0.001]
[1763771653073,0.4723,2775.7,2775.3,0.001]
[1763771653984,0.002,2775.7,2775.6,0.4942]
[1763771654152,0.56748624,2775.7,2775.6,0.4942]
[1763771654354,0.002,2775.7,2775.6,0.4942]
[1763771654576,0.002,2775.7,2775.6,0.9858]
[1763771655805,0.002,2775.7,2775.6,1.391304]
[1763771656084,0.002,2775.7,2775.6,1.62113366]
[1763771656454,0.002,2775.7,2775.6,2.5281263]
[1763771656658,0.002,2776.0,2775.6,2.5281263]
[1763771656659,0.002,2776.0,2775.8,0.405504]
[1763771656904,0.002,2776.0,2775.9,6.90005442]
[1763771657287,0.002,2776.0,2775.9,7.39165442]
[1763771657599,0.002,2776.0,2775.9,8.13081986]
[1763771657802,0.002,2776.3,2776.0,1.31249664]
[1763771657957,0.002,2776.3,2776.2,1.060604]
[1763771658472,0.002,2776.3,2776.2,1.552204]
[1763771660252,0.002,2776.3,2776.2,1.1467]
[1763771660458,0.002,2776.3,2776.2,0.20536926]
[1763771660776,0.002,2776.3,2776.2,5.20519264]
[1763771661989,0.002,2776.3,2776.2,5.69679264]
[1763771662190,0.002,2776.3,2776.2,6.10229664]
[1763771662490,0.002,2776.3,2776.2,5.20519264]
[1763771662689,0.002,2776.3,2776.2,4.71099264]
[1763771662906,0.002,2776.3,2776.2,5.1820919]
[1763771663312,0.002,2776.3,2776.2,5.6762919]
[1763771663666,0.002,2776.3,2776.2,6.1678919]
[1763771664172,0.002,2776.3,2776.2,5.1820919]
[1763771664603,0.002,2776.3,2776.2,5.6762919]
[1763771665059,0.4547,2776.3,2776.2,0.90699264]
[1763771665993,0.002,2776.3,2776.2,1.40119264]
[1763771666202,0.002,2776.3,2776.2,0.90699264]
[1763771667710,0.925,2776.3,2775.6,5.32318744]
[1763771667913,0.7286,2776.2,2775.2,5.58495778]
[1763771668199,0.64,2775.4,2775.3,0.001]
[1763771668572,1.1103,2775.4,2775.3,0.001]
[1763771668791,0.1893,2775.6,2775.3,0.001]
[1763771668963,0.4703,2775.8,2775.3,0.001]
[1763771669369,0.6596,2776.2,2775.3,0.4926]
[1763771669581,0.6596,2776.2,2775.3,1.14549851]
[1763771669810,0.4703,2776.1,2775.3,0.65389851]
[1763771670115,0.4703,2776.1,2775.3,0.001]
[1763771670530,0.4703,2776.1,2776.0,0.001]
[1763771670897,0.923,2776.1,2776.0,0.001]
[1763771671119,0.4527,2776.1,2776.0,0.001]
[1763771671522,0.923,2776.1,2776.0,0.001]
[1763771671856,1.48841257,2776.1,2776.0,0.001]
[1763771672393,1.01811257,2776.1,2776.0,0.001]
[1763771672638,0.56541257,2776.1,2776.0,0.001]
[1763771672838,0.002,2776.3,2776.0,0.001]
[1763771673732,0.4527,2776.1,2776.0,0.001]
[1763771673965,0.923,2776.1,2776.0,0.001]
[1763771675997,1.48844827,2776.1,2776.0,0.001]
[1763771677095,1.48844827,2776.1,2775.7,0.001]
[1763771677296,0.2583,2775.8,2775.7,0.001]
[1763771677758,0.738,2775.8,2775.7,0.001]
[1763771679133,0.405504,2775.7,2775.4,0.001]
[1763771679298,0.4414,2775.5,2775.4,0.001]
[1763771679504,0.846904,2775.5,2775.4,0.001]
[1763771679723,1.326604,2775.5,2775.4,0.001]
[1763771679949,0.9211,2775.5,2775.4,0.001]
[1763771680298,10.236388,2775.5,2775.4,0.001]
[1763771680499,0.405504,2775.2,2775.0,0.001]
[1763771680736,0.4396,2775.1,2774.7,0.001]
[1763771680936,2.89855276,2775.5,2774.7,0.001]
[1763771680937,0.458,2774.8,2774.7,0.001]
[1763771681322,0.4974,2774.8,2774.7,0.001]
[1763771681552,0.9771,2774.8,2774.7,0.001]
[1763771681838,0.197,2775.1,2774.7,0.001]
[1763771682041,0.4797,2775.0,2774.7,0.001]
[1763771682906,0.4974,2774.8,2774.7,0.001]
[1763771683301,0.9771,2774.8,2774.7,0.001]
[1763771685343,1.54280224,2774.8,2774.7,0.001]
[1763771689512,2.1085267,2774.8,2774.7,0.001]
[1763771689930,2.31937937,2774.8,2774.7,0.001]
[1763771692218,1.75367713,2774.8,2774.7,0.001]
[1763771692828,2.15918113,2774.8,2774.7,0.001]
[1763771693032,5.990438,2774.7,2774.6,0.001]
[1763771693219,2.50983293,2774.7,2774.6,0.001]
[1763771693420,1.4300795,2774.7,2774.6,0.001]
[1763771693622,0.657,2774.7,2774.6,0.001]
[1763771693855,0.1773,2774.7,2774.6,0.001]
[1763771694060,0.197,2775.1,2774.6,0.4551]
[1763771694536,0.6767,2775.1,2774.6,0.4551]
[1763771695437,0.197,2775.1,2774.6,0.001]
[1763771695637,0.4797,2775.0,2774.6,0.001]
[1763771695838,0.4974,2774.7,2774.6,0.001]
[1763771696243,0.4797,2775.0,2774.6,0.001]
[1763771696968,0.4974,2774.7,2774.6,0.001]
[1763771697361,0.9771,2774.7,2774.6,0.001]
[1763771698972,10.173957,2774.7,2774.6,0.001]
[1763771699179,9.6271037,2774.7,2774.6,0.001]
[1763771699473,7.5761357,2774.7,2774.6,0.001]
[1763771699777,2.3999997,2774.7,2774.6,0.001]
[1763771700282,7.65664433,2774.7,2774.6,0.001]
[1763771700459,8.00623697,2774.7,2774.6,0.001]
[1763771700640,7.77247697,2774.7,2774.6,0.001]
[1763771701044,12.52305397,2774.7,2774.6,0.001]
[1763771701245,3.06432297,2774.7,2774.6,0.001]
[1763771701446,3.4675474,2774.7,2774.6,0.001]
[1763771703283,1.31249664,2774.6,2774.4,0.001]
[1763771703509,3.024732,2774.3,2774.2,0.001]
[1763771703657,7.48380564,2774.2,2773.9,0.001]
[1763771703982,0.4891,2774.0,2773.9,0.001]
[1763771704182,1.26440377,2774.0,2773.9,0.001]
[1763771704346,0.9688,2774.0,2773.9,0.001]
[1763771705474,1.74431482,2774.0,2773.9,0.001]
[1763771707159,2.65130746,2774.0,2773.9,0.001]
[1763771707366,1.87491396,2774.5,2773.9,0.001]
[1763771707656,0.77596744,2774.4,2774.0,0.4618]
[1763771707859,0.4599,2774.8,2774.1,0.1561]
[1763771708176,0.4648,2774.2,2773.9,0.001]
[1763771709055,1.03058191,2774.2,2773.9,0.001]
[1763771710160,0.2252,2774.0,2773.9,0.001]
[1763771710581,0.6851,2774.0,2773.9,0.001]
[1763771711795,0.86676888,2774.0,2773.9,0.001]
[1763771711981,1.64361055,2774.0,2773.9,0.001]
[1763771713658,2.61153187,2774.0,2773.9,0.001]
[1763771714100,3.92402851,2774.0,2773.9,0.001]
[1763771714294,4.58377882,2774.0,2773.9,0.001]
[1763771715611,13.03121905,2774.0,2773.9,0.001]
[1763771715777,0.405504,2773.8,2772.3,0.90699264]
[1763771716088,0.97054411,2773.6,2772.3,0.90699264]
[1763771716288,0.77684167,2773.5,2772.4,0.60756538]
[1763771716483,0.77684167,2773.4,2772.4,0.60756538]
[1763771716701,0.77684167,2773.3,2772.4,0.60756538]
[1763771716900,0.97054411,2773.6,2772.4,0.60756538]
[1763771716901,0.4599,2773.2,2772.4,0.60756538]
[1763771717485,0.77585562,2773.1,2772.4,0.001]
[1763771717713,0.58,2772.5,2772.4,0.001]
[1763771718014,1.35581829,2772.5,2772.4,0.001]
[1763771718215,0.77581829,2772.5,2772.4,0.001]
[1763771718509,0.77581829,2772.7,2772.4,0.001]
[1763771718709,0.4648,2772.5,2772.4,0.001]
[1763771718909,1.23971896,2772.5,2772.4,0.001]
[1763771719135,2.86727276,2772.5,2772.4,0.001]
[1763771720178,1.96028012,2772.5,2772.4,0.001]
[1763771720931,3.43349006,2772.5,2772.4,0.001]
[1763771722100,3.99972359,2772.5,2772.4,0.001]
[1763771722915,3.43350629,2772.5,2772.4,0.001]
[1763771723324,2.19868733,2772.5,2772.4,0.001]
[1763771723688,2.65858733,2772.5,2772.4,0.001]
[1763771724092,3.43090881,2772.5,2772.4,0.001]
[1763771725726,3.09013767,2772.5,2772.4,0.001]
[1763771727229,1.85791619,2772.5,2772.4,0.001]
[1763771727401,1.29169469,2772.5,2772.4,0.001]
[1763771727597,1.03103353,2772.5,2772.4,0.001]
[1763771727798,1.49093353,2772.5,2772.4,0.001]
[1763771729034,0.56623353,2772.5,2772.4,0.9314]
[1763771729198,0.97054411,2773.7,2772.4,0.9314]
[1763771729404,0.77292504,2773.6,2773.1,0.4686]
[1763771729730,1.52750428,2773.8,2773.1,0.6325]
[1763771730231,1.06760428,2773.8,2773.1,0.6325]
[1763771730436,0.97054411,2774.2,2773.7,0.4686]
[1763771730640,0.77312096,2774.1,2773.7,0.4686]
[1763771730937,0.56595753,2774.1,2773.7,0.4686]
[1763771731163,0.56595753,2774.1,2774.0,0.4686]
[1763771731360,1.03075753,2774.1,2773.1,0.1639]
[1763771731507,1.49065753,2774.1,2773.3,0.4618]
[1763771732426,1.03075753,2774.1,2773.3,0.4618]
[1763771732630,0.56591311,2774.0,2773.3,0.4618]
[1763771733414,0.184,2773.9,2773.3,0.4618]
[1763771734554,0.56591311,2774.0,2773.8,0.4686]
[1763771734912,0.56591311,2774.0,2773.1,0.1639]
[1763771735151,0.56591311,2774.0,2773.9,0.4811]
[1763771735628,0.56591311,2774.0,2773.6,0.4737]
[1763771735841,0.56591311,2774.0,2773.2,0.4737]